fUSD/lending_fUSD_20260501
["ID","MTS","AMOUNT","RATE_DAILY","PERIOD"]
[421434265,1777645840000,-17467.1083,9.4e-05,2]
[421434264,1777645840000,-151.0,9.361e-05,2]
[421434270,1777645840000,-151.0,9.416e-05,2]
[421434273,1777645840000,-200.0,9.485e-05,2]
[421434268,1777645840000,-1247.0,9.411e-05,2]
[421434269,1777645840000,-11455.01673214,9.416e-05,2]
[421434266,1777645840000,-2500.0,9.4e-05,2]
[421434271,1777645840000,-11878.85235123,9.471e-05,2]
[421434272,1777645840000,-159.18162079,9.471e-05,2]
[421434275,1777645840000,-500.0,9.496e-05,2]
[421434278,1777645840000,-500.0,9.496e-05,2]
[421434286,1777645840000,-500.0,9.496e-05,2]
[421434277,1777645840000,-500.0,9.496e-05,2]
[421434276,1777645840000,-500.0,9.496e-05,2]
[421434354,1777645841000,-152.101557,9.526e-05,2]
[421434353,1777645841000,-151.0,9.526e-05,2]
[421434349,1777645841000,-151.0,9.526e-05,2]
[421434350,1777645841000,-151.0,9.526e-05,2]
[421434352,1777645841000,-151.0,9.526e-05,2]
[421434348,1777645841000,-151.0,9.526e-05,2]
[421434357,1777645841000,-151.0,9.589e-05,2]
[421434346,1777645841000,-776.348368,9.526e-05,2]
[421434347,1777645841000,-731.299342,9.526e-05,2]
[421434356,1777645841000,-12774.14957409,9.581e-05,2]
[421434351,1777645841000,-151.0,9.526e-05,2]
[421434355,1777645841000,-211.67987284,9.578e-05,2]
[421434365,1777645841000,-150.0,9.616e-05,2]
[421434359,1777645841000,-500.0,9.616e-05,2]
[421434361,1777645841000,-216.83912454,9.616e-05,2]
[421434360,1777645841000,-150.0,9.616e-05,2]
[421434362,1777645841000,-150.0,9.616e-05,2]
[421434366,1777645841000,-150.0,9.616e-05,2]
[421434364,1777645841000,-150.0,9.616e-05,2]
[421434367,1777645841000,-189.84773086,9.616e-05,2]
[421434363,1777645841000,-150.0,9.616e-05,2]
[421434369,1777645841000,-150.0,9.616e-05,2]
[421434368,1777645841000,-150.0,9.616e-05,2]
[421434370,1777645841000,-250.0,9.627e-05,2]
[421434344,1777645841000,-776.348368,9.526e-05,2]
[421434380,1777645841000,-8912.42042966,9.691e-05,2]
[421434358,1777645841000,-501.49121853,9.598e-05,2]
[421434340,1777645841000,-776.348368,9.526e-05,2]
[421434320,1777645841000,-588.58,9.5e-05,2]
[421434342,1777645841000,-776.348368,9.526e-05,2]
[421434379,1777645841000,-181.08010149,9.689e-05,2]
[421434316,1777645841000,-500.0,9.496e-05,2]
[421434318,1777645841000,-500.0,9.496e-05,2]
[421434319,1777645841000,-500.0,9.496e-05,2]
[421434315,1777645841000,-500.0,9.496e-05,2]
[421434317,1777645841000,-500.0,9.496e-05,2]
[421434321,1777645841000,-500.0,9.503e-05,2]
[421434325,1777645841000,-500.57558774,9.503e-05,2]
[421434323,1777645841000,-500.0,9.503e-05,2]
[421434331,1777645841000,-508.45962062,9.51e-05,2]
[421434332,1777645841000,-5157.36237602,9.511e-05,2]
[421434322,1777645841000,-500.0,9.503e-05,2]
[421434330,1777645841000,-500.0,9.51e-05,2]
[421434327,1777645841000,-500.0,9.503e-05,2]
[421434324,1777645841000,-500.0,9.503e-05,2]
[421434328,1777645841000,-325.84983632,9.51e-05,2]
[421434326,1777645841000,-500.0,9.503e-05,2]
[421434329,1777645841000,-500.0,9.51e-05,2]
[421434333,1777645841000,-169.75086632,9.518e-05,2]
[421434335,1777645841000,-151.0,9.523e-05,2]
[421434336,1777645841000,-166.66,9.524e-05,2]
[421434337,1777645841000,-12318.36988823,9.526e-05,2]
[421434334,1777645841000,-151.0,9.523e-05,2]
[421434345,1777645841000,-731.299342,9.526e-05,2]
[421434343,1777645841000,-731.299342,9.526e-05,2]
[421434339,1777645841000,-2265.6426694,9.526e-05,2]
[421434338,1777645841000,-224180.3320824,9.526e-05,2]
[421434341,1777645841000,-731.299342,9.526e-05,2]
[421434381,1777645841000,-37438.66842793,9.7e-05,2]
[421434403,1777645841000,-150.0,9.89e-05,2]
[421434372,1777645841000,-348.41783646,9.628e-05,2]
[421434412,1777645841000,-150.0,9.973e-05,2]
[421434410,1777645841000,-150.0,9.973e-05,2]
[421434413,1777645841000,-150.0,9.973e-05,2]
[421434411,1777645841000,-150.0,9.973e-05,2]
[421434409,1777645841000,-255.0,9.944e-05,2]
[421434408,1777645841000,-150.0,9.937e-05,2]
[421434416,1777645841000,-155.0,9.999e-05,2]
[421434415,1777645841000,-151.0,9.987e-05,2]
[421434414,1777645841000,-150.0,9.973e-05,2]
[421434417,1777645841000,-12285.98117721,0.0001,2]
[421434419,1777645841000,-3339.99615086,0.0001,2]
[421434420,1777645841000,-2742.823548,0.0001,2]
[421434407,1777645841000,-150.0,9.901e-05,2]
[421434429,1777645841000,-414.20485,0.0001,2]
[421434418,1777645841000,-642.6855176,0.0001,2]
[421434428,1777645841000,-776.348368,0.0001,2]
[421434422,1777645841000,-1558.46243963,0.0001,2]
[421434423,1777645841000,-174.78731624,0.0001,2]
[421434427,1777645841000,-776.348368,0.0001,2]
[421434424,1777645841000,-696.52860007,0.0001,2]
[421434425,1777645841000,-776.348368,0.0001,2]
[421434426,1777645841000,-776.348368,0.0001,2]
[421434432,1777645841000,-414.20486,0.0001,2]
[421434431,1777645841000,-414.20486,0.0001,2]
[421434434,1777645841000,-414.20486,0.0001,2]
[421434433,1777645841000,-414.20486,0.0001,2]
[421434421,1777645841000,-2474.23936165,0.0001,2]
[421434400,1777645841000,-771.01748645,9.884e-05,2]
[421434430,1777645841000,-414.20486,0.0001,2]
[421434399,1777645841000,-286.83134199,9.884e-05,2]
[421434401,1777645841000,-279.9045709,9.884e-05,2]
[421434382,1777645841000,-150.0,9.723e-05,2]
[421434373,1777645841000,-300.0,9.628e-05,2]
[421434377,1777645841000,-150.0,9.688e-05,2]
[421434371,1777645841000,-250.0,9.627e-05,2]
[421434378,1777645841000,-181.0801015,9.689e-05,2]
[421434375,1777645841000,-150.0,9.652e-05,2]
[421434376,1777645841000,-194.37507972,9.655e-05,2]
[421434383,1777645841000,-500.0,9.726e-05,2]
[421434385,1777645841000,-160.94,9.756e-05,2]
[421434384,1777645841000,-150.0,9.735e-05,2]
[421434392,1777645841000,-4254.748325,9.8e-05,2]
[421434393,1777645841000,-166.66,9.819e-05,2]
[421434386,1777645841000,-150.0,9.759e-05,2]
[421434374,1777645841000,-13246.79310833,9.636e-05,2]
[421434388,1777645841000,-150.0,9.795e-05,2]
[421434394,1777645841000,-150.0,9.83e-05,2]
[421434405,1777645841000,-420.0,9.899e-05,2]
[421434397,1777645841000,-882.87,9.874e-05,2]
[421434404,1777645841000,-1680.0,9.899e-05,2]
[421434402,1777645841000,-217.15233878,9.884e-05,2]
[421434406,1777645841000,-248.0,9.899e-05,2]
[421434395,1777645841000,-150.0,9.854e-05,2]
[421434391,1777645841000,-562.443256,9.8e-05,2]
[421434396,1777645841000,-150.0,9.866e-05,2]
[421434389,1777645841000,-2000.0,9.8e-05,2]
[421434398,1777645841000,-1481.23780761,9.884e-05,2]
[421434387,1777645841000,-217.02,9.766e-05,2]
[421434390,1777645841000,-11925.8648,9.8e-05,2]
[421434471,1777645842000,-500.0,0.0001,2]
[421434465,1777645842000,-151.0,0.0001,2]
[421434464,1777645842000,-151.0,0.0001,2]
[421434469,1777645842000,-151.0,0.0001,2]
[421434473,1777645842000,-500.0,0.0001,2]
[421434470,1777645842000,-151.0,0.0001,2]
[421434468,1777645842000,-151.0,0.0001,2]
[421434475,1777645842000,-151.0,0.0001,2]
[421434474,1777645842000,-151.0,0.0001,2]
[421434460,1777645842000,-151.0,0.0001,2]
[421434466,1777645842000,-151.0,0.0001,2]
[421434481,1777645842000,-151.0,0.0001,2]
[421434477,1777645842000,-151.0,0.0001,2]
[421434476,1777645842000,-500.0,0.0001,2]
[421434478,1777645842000,-500.0,0.0001,2]
[421434479,1777645842000,-151.0,0.0001,2]
[421434463,1777645842000,-151.0,0.0001,2]
[421434484,1777645842000,-500.0,0.0001,2]
[421434480,1777645842000,-500.0,0.0001,2]
[421434485,1777645842000,-500.0,0.0001,2]
[421434483,1777645842000,-151.0,0.0001,2]
[421434482,1777645842000,-500.0,0.0001,2]
[421434488,1777645842000,-500.0,0.0001,2]
[421434489,1777645842000,-500.0,0.0001,2]
[421434472,1777645842000,-151.0,0.0001,2]
[421434462,1777645842000,-151.0,0.0001,2]
[421434452,1777645842000,-500.0,0.0001,2]
[421434459,1777645842000,-151.0,0.0001,2]
[421434490,1777645842000,-226.726726,0.0001,2]
[421434441,1777645842000,-500.0,0.0001,2]
[421434435,1777645842000,-200.0,0.0001,2]
[421434438,1777645842000,-151.0,0.0001,2]
[421434439,1777645842000,-500.0,0.0001,2]
[421434442,1777645842000,-151.0,0.0001,2]
[421434436,1777645842000,-500.0,0.0001,2]
[421434437,1777645842000,-500.0,0.0001,2]
[421434440,1777645842000,-151.0,0.0001,2]
[421434454,1777645842000,-151.0,0.0001,2]
[421434443,1777645842000,-500.0,0.0001,2]
[421434461,1777645842000,-151.0,0.0001,2]
[421434447,1777645842000,-151.0,0.0001,2]
[421434445,1777645842000,-500.0,0.0001,2]
[421434446,1777645842000,-500.0,0.0001,2]
[421434453,1777645842000,-151.0,0.0001,2]
[421434448,1777645842000,-500.0,0.0001,2]
[421434455,1777645842000,-151.0,0.0001,2]
[421434449,1777645842000,-151.0,0.0001,2]
[421434451,1777645842000,-151.0,0.0001,2]
[421434456,1777645842000,-151.0,0.0001,2]
[421434457,1777645842000,-151.0,0.0001,2]
[421434467,1777645842000,-151.0,0.0001,2]
[421434458,1777645842000,-151.0,0.0001,2]
[421434450,1777645842000,-500.0,0.0001,2]
[421434444,1777645842000,-500.0,0.0001,2]
[421434491,1777645842000,-151.0,0.0001,2]
[421434486,1777645842000,-151.0,0.0001,2]
[421434536,1777645842000,-187.78006525,0.00010237,2]
[421434525,1777645842000,-150.0,0.00010091,2]
[421434527,1777645842000,-150.0,0.00010115,2]
[421434530,1777645842000,-150.0,0.00010186,2]
[421434531,1777645842000,-1233.68289629,0.00010204,2]
[421434528,1777645842000,-150.0,0.00010151,2]
[421434529,1777645842000,-150.0,0.00010151,2]
[421434532,1777645842000,-150.0,0.0001021,2]
[421434533,1777645842000,-150.0,0.00010222,2]
[421434548,1777645842000,-150.0,0.00010364,2]
[421434547,1777645842000,-215.0,0.0001034,2]
[421434537,1777645842000,-160.94,0.00010244,2]
[421434538,1777645842000,-150.0,0.00010258,2]
[421434544,1777645842000,-150.0,0.00010329,2]
[421434541,1777645842000,-150.0,0.00010329,2]
[421434542,1777645842000,-150.0,0.00010329,2]
[421434540,1777645842000,-150.0,0.00010293,2]
[421434539,1777645842000,-4000.0,0.00010278,2]
[421434546,1777645842000,-150.0,0.00010329,2]
[421434545,1777645842000,-150.0,0.00010329,2]
[421434550,1777645842000,-168.78,0.00010381,2]
[421434552,1777645842000,-150.0,0.000104,2]
[421434551,1777645842000,-350.0,0.00010397,2]
[421434553,1777645842000,-166.66,0.00010409,2]
[421434487,1777645842000,-500.0,0.0001,2]
[421434534,1777645842000,-12244.9266118,0.0001023,2]
[421434535,1777645842000,-217.02,0.00010231,2]
[421434549,1777645842000,-168.78,0.00010381,2]
[421434522,1777645842000,-205.12864192,0.00010067,2]
[421434492,1777645842000,-151.0,0.0001,2]
[421434526,1777645842000,-166.66,0.00010114,2]
[421434494,1777645842000,-151.0,0.0001,2]
[421434495,1777645842000,-151.0,0.0001,2]
[421434497,1777645842000,-19064.02,0.0001,2]
[421434499,1777645842000,-150.0,0.00010008,2]
[421434496,1777645842000,-151.0,0.0001,2]
[421434507,1777645842000,-731.299342,0.00010021,2]
[421434500,1777645842000,-1306.96,0.00010021,2]
[421434508,1777645842000,-731.299342,0.00010021,2]
[421434501,1777645842000,-9497.18,0.00010021,2]
[421434505,1777645842000,-731.299342,0.00010021,2]
[421434503,1777645842000,-151.0,0.00010021,2]
[421434498,1777645842000,-422.48918609,0.0001,2]
[421434512,1777645842000,-12641.332145,0.00010025,2]
[421434523,1777645842000,-500.47150084,0.00010067,2]
[421434518,1777645842000,-1000.0,0.00010051,2]
[421434520,1777645842000,-500.0,0.00010067,2]
[421434517,1777645842000,-1000.0,0.00010051,2]
[421434519,1777645842000,-500.0,0.00010067,2]
[421434524,1777645842000,-150.0,0.00010079,2]
[421434515,1777645842000,-1000.0,0.00010051,2]
[421434513,1777645842000,-4000.0,0.00010027,2]
[421434514,1777645842000,-150.0,0.00010044,2]
[421434510,1777645842000,-731.299342,0.00010021,2]
[421434516,1777645842000,-1000.0,0.00010051,2]
[421434593,1777645843000,-150.0,0.00010685,2]
[421434597,1777645843000,-225.34182188,0.00010685,2]
[421434590,1777645843000,-150.0,0.00010685,2]
[421434599,1777645843000,-217.02,0.00010696,2]
[421434589,1777645843000,-150.0,0.00010685,2]
[421434591,1777645843000,-290.56746431,0.00010685,2]
[421434592,1777645843000,-150.0,0.00010685,2]
[421434588,1777645843000,-217.0,0.00010678,2]
[421434583,1777645843000,-150.0,0.00010649,2]
[421434581,1777645843000,-1000.0,0.00010615,2]
[421434598,1777645843000,-7622.0,0.00010685,2]
[421434600,1777645843000,-155.0,0.00010699,2]
[421434594,1777645843000,-299.136305,0.00010685,2]
[421434610,1777645843000,-776.348368,0.000107,2]
[421434602,1777645843000,-1201894.18276522,0.000107,2]
[421434611,1777645843000,-731.299342,0.000107,2]
[421434607,1777645843000,-731.299342,0.000107,2]
[421434606,1777645843000,-776.348368,0.000107,2]
[421434601,1777645843000,-156.0,0.000107,5]
[421434624,1777645843000,-1664.0,0.00010719,2]
[421434604,1777645843000,-151.0,0.000107,2]
[421434609,1777645843000,-731.299342,0.000107,2]
[421434608,1777645843000,-776.348368,0.000107,2]
[421434605,1777645843000,-151.0,0.000107,2]
[421434612,1777645843000,-776.348368,0.000107,2]
[421434617,1777645843000,-151.0,0.000107,2]
[421434580,1777645843000,-150.0,0.00010614,2]
[421434596,1777645843000,-4727.0,0.00010685,2]
[421434578,1777645843000,-5000.0,0.000106,2]
[421434561,1777645843000,-2000.0,0.00010455,2]
[421434577,1777645843000,-437.70499783,0.000106,2]
[421434560,1777645843000,-150.0,0.00010447,2]
[421434559,1777645843000,-150.0,0.00010436,2]
[421434556,1777645843000,-1536.04360649,0.00010432,2]
[421434562,1777645843000,-1247.0,0.00010456,2]
[421434555,1777645843000,-250.0,0.00010411,2]
[421434558,1777645843000,-225.18697532,0.00010432,2]
[421434557,1777645843000,-407.27198774,0.00010432,2]
[421434554,1777645843000,-166.8,0.00010411,2]
[421434563,1777645843000,-150.0,0.00010471,2]
[421434565,1777645843000,-350.0,0.00010516,2]
[421434566,1777645843000,-4000.0,0.00010529,2]
[421434568,1777645843000,-200.0,0.00010548,2]
[421434570,1777645843000,-150.0,0.00010578,2]
[421434567,1777645843000,-150.0,0.00010542,2]
[421434574,1777645843000,-363.80656971,0.00010598,2]
[421434569,1777645843000,-150.0,0.00010566,2]
[421434564,1777645843000,-150.0,0.00010507,2]
[421434571,1777645843000,-350.0,0.00010591,2]
[421434572,1777645843000,-1500.0,0.00010598,2]
[421434573,1777645843000,-1500.0,0.00010598,2]
[421434576,1777645843000,-1505.59519164,0.000106,2]
[421434584,1777645843000,-501.12537306,0.00010673,2]
[421434587,1777645843000,-274.0,0.00010678,2]
[421434575,1777645843000,-1500.0,0.00010598,2]
[421434585,1777645843000,-471.10592492,0.00010673,2]
[421434586,1777645843000,-500.73992349,0.00010673,2]
[421434582,1777645843000,-1000.0,0.00010615,2]
[421434579,1777645843000,-275.81470301,0.000106,2]
[421434614,1777645843000,-151.0,0.000107,2]
[421434613,1777645843000,-731.299342,0.000107,2]
[421434621,1777645843000,-151.882,0.00010719,2]
[421434652,1777645843000,-151.0,0.00010959,2]
[421434653,1777645843000,-151.0,0.00010959,2]
[421434654,1777645843000,-151.0,0.00010959,2]
[421434655,1777645843000,-151.0,0.00010959,2]
[421434662,1777645843000,-213.352249,0.00010959,2]
[421434657,1777645843000,-150.0,0.00010959,2]
[421434656,1777645843000,-166.66,0.00010959,2]
[421434658,1777645843000,-213.352249,0.00010959,2]
[421434660,1777645843000,-213.352249,0.00010959,2]
[421434663,1777645843000,-213.352249,0.00010959,2]
[421434664,1777645843000,-213.352249,0.00010959,2]
[421434661,1777645843000,-213.352249,0.00010959,2]
[421434659,1777645843000,-213.352249,0.00010959,2]
[421434650,1777645843000,-151.0,0.00010959,2]
[421434665,1777645843000,-213.352249,0.00010959,2]
[421434668,1777645843000,-213.352249,0.00010959,2]
[421434676,1777645843000,-4000.0,0.0001103,2]
[421434667,1777645843000,-213.352249,0.00010959,2]
[421434677,1777645843000,-156.78,0.00011032,2]
[421434671,1777645843000,-882.87,0.00010971,2]
[421434670,1777645843000,-150.0,0.00010959,2]
[421434669,1777645843000,-213.352249,0.00010959,2]
[421434672,1777645843000,-231.00348457,0.0001098,2]
[421434675,1777645843000,-156.78,0.00011027,2]
[421434673,1777645843000,-155.0,0.00010999,2]
[421434679,1777645843000,-156.78,0.00011044,2]
[421434678,1777645843000,-156.78,0.00011038,2]
[421434619,1777645843000,-151.0,0.000107,2]
[421434666,1777645843000,-213.352249,0.00010959,2]
[421434644,1777645843000,-500.0,0.00010958,3]
[421434674,1777645843000,-937.98291307,0.00010999,2]
[421434647,1777645843000,-151.0,0.00010959,2]
[421434649,1777645843000,-151.0,0.00010959,2]
[421434620,1777645843000,-1267.0,0.00010719,2]
[421434626,1777645843000,-4000.0,0.00010779,2]
[421434616,1777645843000,-151.0,0.000107,2]
[421434622,1777645843000,-1220.0,0.00010719,2]
[421434623,1777645843000,-928.0,0.00010719,2]
[421434625,1777645843000,-160.94,0.00010732,2]
[421434627,1777645843000,-194.72792766,0.00010785,2]
[421434628,1777645843000,-1126.69,0.00010792,2]
[421434629,1777645843000,-8187.22,0.00010792,2]
[421434638,1777645843000,-4002.4334951,0.000109,2]
[421434637,1777645843000,-4002.4334951,0.000109,2]
[421434631,1777645843000,-350.0,0.00010863,2]
[421434639,1777645843000,-196.2,0.00010925,2]
[421434615,1777645843000,-151.0,0.000107,2]
[421434635,1777645843000,-4002.4334951,0.000109,2]
[421434630,1777645843000,-350.0,0.00010836,2]
[421434648,1777645843000,-151.0,0.00010959,2]
[421434642,1777645843000,-163.101,0.00010941,2]
[421434645,1777645843000,-500.0,0.00010959,2]
[421434640,1777645843000,-433.0,0.00010938,2]
[421434643,1777645843000,-500.0,0.00010958,2]
[421434651,1777645843000,-151.0,0.00010959,2]
[421434632,1777645843000,-2351.0,0.00010889,2]
[421434641,1777645843000,-2741.092,0.00010941,2]
[421434636,1777645843000,-4002.4334951,0.000109,2]
[421434646,1777645843000,-151.0,0.00010959,2]
[421434633,1777645843000,-587.0,0.00010889,2]
[421434634,1777645843000,-4002.43349512,0.000109,2]
[421434728,1777645844000,-1122.91719053,0.00011163,2]
[421434709,1777645844000,-776.348368,0.00011099,2]
[421434711,1777645844000,-776.348368,0.00011099,2]
[421434710,1777645844000,-776.348368,0.00011099,2]
[421434714,1777645844000,-151.0,0.00011099,2]
[421434713,1777645844000,-155.52814,0.00011099,2]
[421434715,1777645844000,-151.0,0.00011099,2]
[421434717,1777645844000,-213.352249,0.00011099,2]
[421434718,1777645844000,-213.352249,0.00011099,2]
[421434716,1777645844000,-151.0,0.00011099,2]
[421434712,1777645844000,-151.0,0.00011099,2]
[421434720,1777645844000,-213.352249,0.00011099,2]
[421434726,1777645844000,-1293.94312632,0.00011146,2]
[421434721,1777645844000,-1518.33,0.000111,2]
[421434722,1777645844000,-206.95,0.000111,2]
[421434719,1777645844000,-213.352249,0.00011099,2]
[421434724,1777645844000,-2041.7981707,0.00011146,2]
[421434725,1777645844000,-434.60259387,0.00011146,2]
[421434730,1777645844000,-166.66,0.00011178,2]
[421434729,1777645844000,-1500.0,0.00011163,2]
[421434733,1777645844000,-160.94,0.0001122,2]
[421434732,1777645844000,-4002.4334951,0.00011186,2]
[421434706,1777645844000,-151.0,0.00011099,2]
[421434731,1777645844000,-228.39,0.0001118,2]
[421434727,1777645844000,-217.02,0.00011161,2]
[421434708,1777645844000,-776.348368,0.00011099,2]
[421434693,1777645844000,-11368.00476881,0.00011099,2]
[421434705,1777645844000,-13571.87338265,0.00011099,2]
[421434734,1777645844000,-151.0,0.00011221,2]
[421434689,1777645844000,-300.0,0.00011098,2]
[421434690,1777645844000,-666.0,0.00011098,2]
[421434691,1777645844000,-300.0,0.00011098,2]
[421434680,1777645844000,-156.78,0.00011046,2]
[421434685,1777645844000,-666.0,0.00011098,2]
[421434681,1777645844000,-166.66,0.00011068,2]
[421434686,1777645844000,-300.0,0.00011098,2]
[421434683,1777645844000,-174.68086836,0.00011098,2]
[421434684,1777645844000,-300.0,0.00011098,2]
[421434688,1777645844000,-300.0,0.00011098,2]
[421434682,1777645844000,-203.46399359,0.00011096,2]
[421434687,1777645844000,-666.0,0.00011098,2]
[421434694,1777645844000,-11368.00476881,0.00011099,2]
[421434695,1777645844000,-11368.00476881,0.00011099,2]
[421434692,1777645844000,-11368.00476882,0.00011099,2]
[421434699,1777645844000,-13571.87338269,0.00011099,2]
[421434700,1777645844000,-13571.87338265,0.00011099,2]
[421434702,1777645844000,-13571.87338265,0.00011099,2]
[421434701,1777645844000,-13571.87338265,0.00011099,2]
[421434704,1777645844000,-13571.87338265,0.00011099,2]
[421434696,1777645844000,-11368.00476881,0.00011099,2]
[421434703,1777645844000,-13571.87338265,0.00011099,2]
[421434698,1777645844000,-11368.00476881,0.00011099,2]
[421434697,1777645844000,-11368.00476881,0.00011099,2]
[421434707,1777645844000,-195.910297,0.00011099,2]
[421434741,1777645844000,-582.45,0.00011281,2]
[421434723,1777645844000,-5765.43,0.00011134,2]
[421434737,1777645844000,-731.299342,0.00011221,2]
[421434764,1777645844000,-151.0,0.00011501,2]
[421434767,1777645844000,-213.352249,0.00011501,2]
[421434770,1777645844000,-166.66,0.00011507,2]
[421434780,1777645844000,-2819.51117564,0.0001176,2]
[421434772,1777645844000,-350.0,0.00011581,2]
[421434771,1777645844000,-4002.4334951,0.00011543,2]
[421434779,1777645844000,-949.05656584,0.00011711,2]
[421434774,1777645844000,-11368.00476881,0.00011625,2]
[421434775,1777645844000,-217.02,0.00011626,2]
[421434776,1777645844000,-151.0,0.00011633,2]
[421434773,1777645844000,-13571.87338265,0.00011622,2]
[421434778,1777645844000,-160.94,0.00011708,2]
[421434777,1777645844000,-5071.22,0.00011682,2]
[421434786,1777645844000,-151.0,0.0001188,2]
[421434782,1777645844000,-150.0,0.00011817,2]
[421434781,1777645844000,-150.0,0.00011817,2]
[421434783,1777645844000,-150.0,0.00011817,2]
[421434785,1777645844000,-2521.91435311,0.0001188,10]
[421434784,1777645844000,-599.60298507,0.0001188,2]
[421434789,1777645844000,-5719.9884,0.000119,2]
[421434792,1777645844000,-776.348368,0.000119,2]
[421434790,1777645844000,-13571.87338265,0.000119,2]
[421434788,1777645844000,-322.50177111,0.00011899,2]
[421434787,1777645844000,-209.40437684,0.00011881,2]
[421434736,1777645844000,-731.299342,0.00011221,2]
[421434766,1777645844000,-213.352249,0.00011501,2]
[421434759,1777645844000,-5925.57856251,0.000115,2]
[421434769,1777645844000,-1247.0,0.00011502,2]
[421434763,1777645844000,-151.0,0.00011501,2]
[421434740,1777645844000,-275.81470299,0.0001125,2]
[421434743,1777645844000,-166.66,0.00011288,2]
[421434744,1777645844000,-315.0,0.000113,2]
[421434738,1777645844000,-731.299342,0.00011221,2]
[421434735,1777645844000,-151.0,0.00011221,2]
[421434739,1777645844000,-731.299342,0.00011221,2]
[421434742,1777645844000,-999.99,0.00011281,2]
[421434762,1777645844000,-151.0,0.00011501,2]
[421434791,1777645844000,-776.348368,0.000119,2]
[421434753,1777645844000,-1500.0,0.0001137,2]
[421434749,1777645844000,-13571.87338265,0.00011344,2]
[421434752,1777645844000,-1000.0,0.0001137,2]
[421434754,1777645844000,-150.0,0.0001138,2]
[421434746,1777645844000,-1000.0,0.000113,2]
[421434747,1777645844000,-201.93286099,0.00011333,2]
[421434755,1777645844000,-166.66,0.00011397,2]
[421434765,1777645844000,-213.352249,0.00011501,2]
[421434761,1777645844000,-151.0,0.00011501,2]
[421434757,1777645844000,-518.58739321,0.00011461,2]
[421434760,1777645844000,-2000.0,0.00011501,2]
[421434768,1777645844000,-213.352241,0.00011501,2]
[421434751,1777645844000,-274.07,0.00011352,2]
[421434745,1777645844000,-307.0,0.000113,2]
[421434756,1777645844000,-350.0,0.00011438,2]
[421434750,1777645844000,-11368.00476881,0.0001135,2]
[421434748,1777645844000,-350.0,0.00011342,2]
[421434758,1777645844000,-19413.02267407,0.00011472,2]
[421434803,1777645845000,-400.0,0.0001197,2]
[421434796,1777645845000,-3383.21183878,0.000119,2]
[421434798,1777645845000,-9742.33350724,0.000119,2]
[421434799,1777645845000,-181.6090617,0.000119,2]
[421434800,1777645845000,-4002.4334951,0.000119,2]
[421434804,1777645845000,-700.0,0.0001197,2]
[421434797,1777645845000,-275.81470299,0.000119,2]
[421434793,1777645845000,-776.348368,0.000119,2]
[421434802,1777645845000,-200.0,0.00011904,2]
[421434795,1777645845000,-11368.00476881,0.000119,2]
[421434794,1777645845000,-776.348362,0.000119,2]
[421434806,1777645845000,-1000.0,0.0001197,2]
[421434801,1777645845000,-200.0,0.00011903,2]
[421434805,1777645845000,-1000.0,0.0001197,2]
[421434809,1777645845000,-1000.0,0.0001197,2]
[421434816,1777645845000,-422.48918609,0.0001199,2]
[421434821,1777645845000,-120739.48353067,0.00012,2]
[421434820,1777645845000,-416.0,0.00010679,2]
[421434819,1777645845000,-392.245,0.00012,2]